{"text_format":"1","workbook":"xlsx","n_sheets":1,"sheets":["Лист1"],"not_rendered":{"charts":0,"images":0,"macros":1,"external_links":0,"defined_names":0,"comments":0,"pivot_tables":0},"unopened":[],"bounds":{"document_bytes":16777216,"sheet_cells":100000,"rows_first":2000,"rows_last":500,"rows_between":2000,"halvings":0,"cell_chars":16384,"cell_head_chars":4096},"cells_cut":0,"cells_raw":0,"read":"whole","date_system":"1900"}

{"sheet":"Лист1","index":0,"n_rows":31,"n_cols":6,"rows_kept":31,"cut":false,"hidden":false,"merged":[[1,5,12,15]]}
[null,null,null,"Столбец1"]
["Петров, Сидоров",null,null,{"$f":"IF(B2,IF(B3,IF(ISNUMBER(SEARCH(A2,D3))+(C2=\"снят\"),D3,A2&IF(D3=\"\",\"\",\", \"&D3)),IF(C2=\"снят\",\"\",A2)),D3)","v":"Петров, Сидоров"},null,"Доброго времени суток!\nУважаемые, возникла следующая проблема, не могу дотумкать как СЦЕПИТЬ значения без повторов при условии, что сцепляем только те которые соответствуют одному дню и без пометки в столбце С (снят).\nТ.е. первая и шестая строка это типа итоговая для нижестоящих строк для каждого дня отдельно. Колличество ячеек соотвествующих одному дню может переодически менятся от одной до двадцатидвух.\nХотелось бы на выходе получить универсальную формулу для диапазона в 1000 строк поумолчанию.\nМАКРОСЫ НЕ ЖЕЛАТЕЛЬНЫ\nЗаранее благодарен всем вариантам или пинкам в нужном направлении )"]
["Петров","2015-03-04",null,"Петров, Сидоров"]
["Иванов","2015-03-04","снят","Сидоров"]
["Сидоров","2015-03-04",null,"Сидоров"]
["Сидоров","2015-03-04",null,"Сидоров"]
["Иванов, Сидоров, Петров",null,null,"Иванов, Сидоров, erty, ва, к"]
["Иванов","2015-03-05",null,"Иванов, Сидоров, erty, ва, к"]
["Иванов","2015-03-05",null,"Иванов, Сидоров, erty, ва, к"]
["Сидоров","2015-03-05","снят","Сидоров, erty, ва, к"]
["Сидоров","2015-03-05",null,"Сидоров, erty, ва, к"]
["Сидоров","2015-03-05",null,"Сидоров, erty, ва, к"]
["Петров","2015-03-05","снят","erty, ва, к"]
["erty","2015-03-05",null,"erty, ва, к"]
["ва","2015-03-05",null,"ва, к"]
["ва","2015-03-05",null,"ва, к"]
["ва","2015-03-05",null,"ва, к"]
["к","2015-03-05",null,"к"]
[null,null,null,"апр, аепр, ро, нг"]
["апр","2015-03-06",null,"апр, аепр, ро, нг"]
["аепр","2015-03-06",null,"аепр, ро, нг"]
["ро","2015-03-06",null,"ро, нг"]
["ро","2015-03-06",null,"ро, нг"]
["нг","2015-03-06",null,"нг"]
["нг","2015-03-06",null,"нг"]
[null,null,null,0]
[null,null,null,0]
[null,null,null,0]
[null,null,null,0]
[null,null,null,0]
[null,null,null,0]